Cogmind - Beta 13 @@@ ROGUE MODE // 2024.03.22 @ 15:44:05 Player: Sloweel Result: Destroyed by JK-I3H(R) with Subdweller Laser Performance ------------- Evolutions (0) 0 Regions Visited (3) 600 Robots Destroyed (31) 155 Value Destroyed (628) 628 Prototype IDs (3) 60 Alien Tech Used (0) 0 Bonus (50) 50 TOTAL SCORE: 1493 Bonus ------- Follower Combat Kills 50 Cogmind --------- Core Integrity 0/250 Matter 300/300 Energy 98/100 System Corruption 0% Temperature Cool (7) Movement Walking (120) Location -10/Subcaves Parts ------- > --- POWER (1) -------- (None) > --- PROPULSION (2) --- Aluminum Leg > --- UTILITY (2) ------ (None) > --- WEAPON (2) ------- (None) > --- INVENTORY (5) ---- Ion Engine Sensor Array Scrap Shield Peak State ------------ > --- POWER ------------ Light Nuclear Core > --- PROPULSION ------- Aluminum Leg Aluminum Leg > --- UTILITY ---------- Improved Heat Sink Medium Storage Unit > --- WEAPON ----------- Medium Laser Particle Gun > --- INVENTORY -------- Ion Engine Light Nuclear Core Aluminum Leg Aluminum Leg Aluminum Leg Aluminum Leg Sensor Array Scrap Shield Mining Claw [Rating: 13] Favorites ----------- Power Ion Engine Engine Ion Engine Power Core Light Nuclear Core Propulsion Aluminum Leg Leg Aluminum Leg Utility Medium Storage Unit Device Sensor Array Storage Medium Storage Unit Weapon Medium Laser Energy Gun Medium Laser Ballistic Gun Light Assault Rifle Slashing Weapon Mining Claw Build | -11 -10 -10 -10 ------- Run | Yrd Mat Min Sub Slots Evolved . | . . . . Power . | . . . . Propulsion . | . . . . Utility . | . . . . Weapon . | . . . . Parts Attached 30 | 7 7 9 7 Power 6 | 1 2 2 1 Engine 3 | 1 2 . . Core 3 | . . 2 1 Reactor . | . . . . Propulsion 12 | 2 2 4 4 Treads . | . . . . Leg 12 | 2 2 4 4 Wheel . | . . . . Hover . | . . . . Flight . | . . . . Utility 5 | 2 2 . 1 Device 4 | 2 1 . 1 Storage 1 | . 1 . . Processor . | . . . . Hackware . | . . . . Protection . | . . . . Artifact . | . . . . Weapon 7 | 2 1 3 1 Energy Gun 3 | 2 . 1 . Energy Cannon . | . . . . Ballistic Gun 3 | . 1 2 . Ballistic Cannon . | . . . . Launcher . | . . . . Special Weapon . | . . . . Impact Weapon . | . . . . Slashing Weapon 1 | . . . 1 Piercing Weapon . | . . . . Special Melee Weapon . | . . . . Unidentified Prototypes . | . . . . Parts Lost 12 | . . . 12 Power 2 | . . . 2 Propulsion 5 | . . . 5 Utility 2 | . . . 2 Weapon 3 | . . . 3 Highest Loss Streak 12 | . . . 12 To Critical Strikes . | . . . . Average Slot Usage (%) 98 | . 99 100 83 Engine 10 | . 14 8 . Core 3 | . . 5 12 Leg 27 | . 28 28 24 Device 14 | . 14 14 9 Storage 13 | . 12 14 14 Energy Gun 18 | . 18 18 17 Ballistic Gun 8 | . 9 9 . Naked Turns . | . . . . Heaviest Build 21 | 8 19 21 21 Greatest Support 20 | 20 20 20 20 Greatest Overweight (x) 1 | . . 1 1 Average Overweight (x) . | . . . . Largest Inventory Capacity 10 | 5 10 10 10 Average Capacity 9 | 5 9 10 9 Most Carried 10 | 5 10 10 10 Average Carried 8 | 3 8 9 8 Final Capacity 10 | 5 10 10 5 Final Carried 10 | 5 10 10 4 Class Distribution -------------------- 75% | Scavenger-Mutant 24% | Mutant Dominant Class ---------------- Scavenger-Mutant | -10/Materials Scavenger-Mutant | -10/Mines Scavenger-Mutant | -10/Subcaves Resources | -11 -10 -10 -10 ----------- Run | Yrd Mat Min Sub Matter Collected 543 | 270 105 115 53 Remotely . | . . . . Salvage Created 958 | 64 418 399 77 Parts 65 | 8 27 22 8 Haulers Intercepted 2 | . 2 . . Recyclers Shooed . | . . . . Parts Field Recycled . | . . . . Retrieved Matter . | . . . . Parts Self-Destructed 9 | . . . 9 Prevented . | . . . . Kills | -11 -10 -10 -10 ------- Run | Yrd Mat Min Sub Combat Hostiles Destroyed 22 | 1 9 10 2 Melee 1 | . . . 1 Guns 21 | 1 9 10 1 Classes Destroyed 9 | 3 4 1 1 Worker 2 | 1 . 1 . Builder 1 | . 1 . . Tunneler 1 | 1 . . . Hauler 2 | . 2 . . Recycler 1 | . . 1 . Watcher 2 | . 2 . . Swarmer 10 | . 4 6 . Grunt 10 | 1 5 4 . Subdweller 2 | . . . 2 Best Kill Streak 4 | 1 4 3 2 Combat Bots Only 4 | 1 4 3 2 Max Kills in Single Turn 1 | 1 1 1 1 Gunslinging . | . . . . Exploded . | . . . . Melee 1 | . . . 1 Uniques/NPCs Destroyed . | . . . . Combat | -11 -10 -10 -10 -------- Run | Yrd Mat Min Sub Hostile Shots Fired 126 | 2 37 34 53 Missed 31 | 1 9 11 10 Damage Taken 1629 | 10 309 238 1072 Core 258 | . 37 7 214 Absorbed by Shields . | . . . . Core Remaining (%) 100 | 100 . . . Volleys Fired 97 | 4 61 27 5 Largest 2 | 2 2 2 2 Hottest 115 | 90 90 115 115 Shots Fired 191 | 8 122 54 7 Gun 191 | 8 122 54 7 Cannon . | . . . . Launcher . | . . . . Special . | . . . . Kinetic 60 | . 35 25 . Thermal 131 | 8 87 29 7 Explosive . | . . . . Electromagnetic . | . . . . Robot Hit Streak 21 | 4 21 7 8 Robot Miss Streak 4 | 1 4 4 . Penetration Max . | . . . . Secondary Targets 4 | . . 3 1 Max Gunslinging Chain 1 | . . 1 1 Shots Hit Robots 134 | 5 80 32 17 Core Hits 53 | 4 27 18 4 Critical Kills 1 | . . 1 . Critical Parts Destroyed . | . . . . Critical Strikes 3 | . 2 1 . Burn 2 | . 2 . . Destroy 1 | . . 1 . Melee Attacks 14 | . . . 14 Impact . | . . . . Slashing 14 | . . . 14 Piercing . | . . . . Sneak Attacks . | . . . . Combat Hostiles . | . . . . Follow-up Attacks . | . . . . Damage Inflicted 1608 | 59 882 327 340 Guns 1366 | 59 878 327 102 Cannons . | . . . . Explosions . | . . . . Melee 235 | . . . 235 Ramming 7 | . 4 . 3 Kinetic 353 | . 233 120 . Thermal 1013 | 59 645 207 102 Explosive . | . . . . Electromagnetic . | . . . . Impact . | . . . . Slashing 235 | . . . 235 Piercing . | . . . . Highest Corruption . | . . . . Average Corruption . | . . . . Corruption Purged . | . . . . Corruption Blocked . | . . . . Overload Shots . | . . . . Overflow Damage . | . . . . Projectiles . | . . . . Explosions . | . . . . Melee . | . . . . Knockbacks . | . . . . Impact . | . . . . Kinetic . | . . . . Secondary . | . . . . Self-Inflicted Damage . | . . . . Shots . | . . . . Rammed . | . . . . Targets Rammed 2 | . 1 . 1 Kicked 2 | . 1 . 1 Crushed . | . . . . Highest Temperature 238 | 66 80 148 238 Average Temperature 38 | 30 22 55 106 Received Heat Transfer 802 | 6 132 57 607 Siege Activations . | . . . . Robots Corrupted . | . . . . Combat Hostiles . | . . . . Parts Fried . | . . . . Impact Corruptions . | . . . . Robots Melted . | . . . . Combat Hostiles . | . . . . Parts Melted 6 | . 5 1 . Heat Transferred 2942 | 161 1930 592 259 Parts Sabotaged . | . . . . Parts Stolen . | . . . . Parts Stripped . | . . . . Power Chain Reactions . | . . . . Alert | -11 -10 -10 -10 ------- Run | Yrd Mat Min Sub Peak Influence 335 | 30 335 198 . Initial 19 | . 19 8 . Average 101 | 9 142 71 . Maximum Alert Level 1 | . 1 . . Low Security (%) 93 | 100 86 100 . Level 1 6 | . 13 . . Level 2 . | . . . . Level 3 . | . . . . Level 4 . | . . . . Level 5 . | . . . . High Security . | . . . . Max Security . | . . . . Squads Dispatched 3 | . 3 . . Investigation 2 | . 2 . . Extermination . | . . . . Reinforcement 1 | . 1 . . Assault . | . . . . Garrison . | . . . . Intercept . | . . . . Searches Triggered . | . . . . Construction Impeded . | . . . . Haulers Reinforced . | . . . . Active Scanning Responses . | . . . . Cargo Convoy Interrupts . | . . . . Stealth | -11 -10 -10 -10 --------- Run | Yrd Mat Min Sub Distress Signals . | . . . . Communications Jammed . | . . . . Distress Signals . | . . . . Times Spotted 35 | 1 18 10 6 Peak Tracking Total 5 | 1 5 3 4 Tactical Retreats 1 | . 1 . . Traps | -11 -10 -10 -10 ------- Run | Yrd Mat Min Sub Traps Triggered 2 | . 2 . . Indirectly . | . . . . Trap Hack Attempts . | . . . . Triggered . | . . . . Disarmed . | . . . . Reprogrammed . | . . . . Reused . | . . . . Traps Extracted . | . . . . Installed . | . . . . Triggered . | . . . . Machines | -11 -10 -10 -10 ---------- Run | Yrd Mat Min Sub Machines Disabled . | . . . . Max in Single Turn . | . . . . Machines Repaired . | . . . . Machines Dismantled . | . . . . Machines Sabotaged . | . . . . Overloaded Fab Kills . | . . . . Hacking | -11 -10 -10 -10 --------- Run | Yrd Mat Min Sub Machines Accessed 3 | . 3 . . Terminals 3 | . 3 . . Fabricators . | . . . . Repair Stations . | . . . . Recycling Units . | . . . . Scanalyzers . | . . . . Garrison Access . | . . . . Total Hacks 4 | . 4 . . Successful 2 | . 2 . . Failed 2 | . 2 . . Catastrophic 1 | . 1 . . Database Lockouts . | . . . . Manual 1 | . 1 . . Terminals 4 | . 4 . . Fabricators . | . . . . Repair Stations . | . . . . Recycling Units . | . . . . Scanalyzers . | . . . . Garrison Access . | . . . . Terminal Hacks 2 | . 2 . . Record 1 | . 1 . . Prototype ID Bank 1 | . 1 . . Fabricator Hacks . | . . . . Repair Station Hacks . | . . . . Recycling Unit Hacks . | . . . . Scanalyzer . | . . . . Garrison Access Hacks . | . . . . Unauthorized Hacks . | . . . . Terminals . | . . . . Fabricators . | . . . . Repair Stations . | . . . . Recycling Units . | . . . . Scanalyzers . | . . . . Garrison Access . | . . . . Data Cores Recovered . | . . . . Used . | . . . . Hacking Detections 2 | . 2 . . Full Trace Events . | . . . . Feedback Events . | . . . . Feedback Blocked . | . . . . Robot Schematics Acquired . | . . . . Robots Built . | . . . . Authchips . | . . . . Time . | . . . . Total Robot Build Rating . | . . . . Part Schematics Acquired . | . . . . Parts Built . | . . . . Authchips . | . . . . Time . | . . . . Total Part Build Rating . | . . . . Parts Repaired . | . . . . Time . | . . . . Parts Recycled . | . . . . Recycled Matter . | . . . . Retrieved Matter . | . . . . Retrieved Components . | . . . . Parts Scanalyzed . | . . . . Part Schematics Acquired . | . . . . Parts Damaged . | . . . . Bothacking | -11 -10 -10 -10 ------------ Run | Yrd Mat Min Sub Used RIF Installer . | . . . . Robots Hacked . | . . . . Non-combat . | . . . . Combat . | . . . . Robot Hacks Applied . | . . . . Relay Couplers Released . | . . . . Fabnet Peak Effective % . | . . . . Robots Rewired . | . . . . Allies Hacked . | . . . . Hacks Repelled . | . . . . Allies | -11 -10 -10 -10 -------- Run | Yrd Mat Min Sub Total Allies 3 | . . 3 . Largest Group 3 | . . 3 . Highest-Rated Group 40 | . . 40 . Highest-Rated Ally 16 | . . 16 . Total Orders . | . . . . Ally Attacks 16 | . . 16 . Total Damage 169 | . . 169 . Kills 2 | . . 2 . Allies Corrupted . | . . . . Allies Melted 1 | . . . 1 Intel | -11 -10 -10 -10 ------- Run | Yrd Mat Min Sub Robot Analysis Total . | . . . . Derelict Logs Recovered . | . . . . Drone Launches . | . . . . Drone Recoveries . | . . . . Exploration | -11 -10 -10 -10 ------------- Run | Yrd Mat Min Sub Turns Passed 1912 | 119 837 789 167 Spaces Moved 1065 | 83 482 456 44 Core 13 | 13 . . . Treads . | . . . . Legs 1052 | 70 482 456 44 Wheels . | . . . . Hover . | . . . . Flight . | . . . . Fastest Speed 50 | 50 120 120 120 Average Speed 127 | 109 120 135 174 Slowest Speed 190 | 120 120 190 190 Overloaded Moves . | . . . . Propulsion Burnouts . | . . . . Robots Hopped . | . . . . Cave-ins Triggered . | . . . . Exploration Rate (%) 36 | 6 58 76 6 Regions Visited 3 Branch Regions 2 Pre-discovered Areas . | . . . . Known Exits Taken . | . . . . Unknown Exits Taken 3 | 1 1 1 . Scrap Searched . | . . . . Spaces Dug . | . . . . Terrain Destroyed . | . . . . Melee . | . . . . Projectile . | . . . . AOE . | . . . . Terrain Rammed . | . . . . Walls Destroyed . | . . . . Machines Disabled . | . . . . Actions | -11 -10 -10 -10 --------- Run | Yrd Mat Min Sub Total 1415 | 100 625 590 100 Wait 169 | . 63 80 26 Move 1062 | 82 481 455 44 Hop . | . . . . Pick Up 18 | 6 6 5 1 Fast Attach 10 | 7 2 1 . Attach 6 | . . . 6 Detach . | . . . . Swap 14 | . 5 8 1 Drop 23 | 1 6 14 2 Fire 97 | 4 61 27 5 Melee 14 | . . . 14 Ram . | . . . . Kick 2 | . 1 . 1 Crush . | . . . . Escape Stasis . | . . . . Rewire . | . . . . Trap . | . . . . Miscellaneous . | . . . . Route ------- -11/Scrapyard -10/Materials (discovered 3 exits: [*Mat] / [*Min] / [*Sub]) -10/Mines -10/Subcaves History --------- Turn | Location | Event 2 | -11/Scrapyard | Met Revision 17 75 | -11/Scrapyard | Discovered new exit (range 8) 120 | -11/Scrapyard | Entered Materials 317 | -10/Materials | Build established: Mutant 357 | -10/Materials | Discovered new exit (range 11) 669 | -10/Materials | Discovered new exit (range 9) 733 | -10/Materials | Build established: Scavenger-Mutant 945 | -10/Materials | Discovered new exit (range 10) 957 | -10/Materials | Entered Mines 1272 | -10/Mines | Discovered new exit (range 6) 1348 | -10/Mines | Assisted by bots powering up and referring to "LRC-V3" 1746 | -10/Mines | Entered Subcaves 1803 | -10/Subcaves | Ambushed by swarm of Subdwellers 1853 | -10/Subcaves | Lost 4 allies 1880 | -10/Subcaves | Ambushed by angry Subdweller bent on revenge 1895 | -10/Subcaves | Core integrity fell below 50% 1904 | -10/Subcaves | Core integrity fell below 20% 1913 | -10/Subcaves | Destroyed by JK-I3H(R) with Subdweller Laser Last Messages --------------- 01873_ 2T-PZJ(R) affixes Scrap Shield Fragment to Scrap Shield. 01878_ Aluminum Leg destroyed. 01880_ JK-I3H(R) angrily emerges from the Twisted Machinery. 01880_ JK-I3H(R): "ECOKILL!" 01883_ Acquired 8 matter. 01889_ 2T-PZJ(R) affixes Scrap Shield Fragment to Scrap Shield. 01893_ 2T-PZJ(R) affixes Scrap Shield Fragment to Scrap Shield. 01894_ Lgt. Nuclear Core destroyed. 01898_ Aluminum Leg destroyed. 01901_ 2T-PZJ(R) affixes Scrap Shield Fragment to Scrap Shield. 01902_ Aluminum Leg destroyed. 01904_ Acquired 10 matter. 01909_ Mining Claw destroyed. 01909_ Kicked 2T-PZJ(R). 01911_ Med. Storage Unit destroyed. Map ----- +----------------------------------------------------+ | ????????????????????????????????????????????? | | ????????????????????????????????????????????? | | ????????????????????????????????????????????? | | ????????????????????????????????????????????? | | ????????????????????????????????????????????? | | ????????????????????????????????????????????? | | ????????????????????????????????????????????? | | ????????????????????????????????????????????? | | ????????????????????????????????????????????? | | ????????????????????????????????????????????? | | ????????????????????????????????????????????? | | ????????????????????????????????????????????? | | ????????????????????????????????????????????? | | ????????????????????????????????????????????? | | ????????????????????????????????????????????? | | ????????????????????????????????????????????? | | ??????????????????????????#####?????????????? | | ?????????????????????????## #"#?????????????? | | ??????????????????????##?# #??????????????? | | ??????????????????????? ##! #???????????????? | | ???????????? ?? ??????#%! ##???????????????? | | ????????????# ????##=!%;#???????????????? | | ??????????????# ##!! [;#???????????????? | | ???????????##### # %;#???????????????? | | ???????????# ## ## R #???????????????? | | ???????? ### # ###@ #???????????????? | | ???????? #### #???????????????? | | ???????# #?# R #???????????????? | | ???????? #?# ""#??????????????? | | ????????# #?# "##??????????????? | | ?????????? #?# ##??????????????? | | ?????????????# #?# & ##?????????????? | | ???????????????# ### %* #?????????????? | | ????????????????# [ *%= #?????????????? | | ?????????????#### ! [! #?????????????? | | ???????????### !%&% #?????????????? | | ??????????## *& = #?????????????? | | ??????????# ## = #?????????????? | | ??????????## ### #?????????????? | | ??????????## ####?# #?????????????? | | ?????????## ##???? ##?????????????? | | ?????????# #????? #####??????????????? | | ????????## %% ## #??????????????????? | | ????????# #??????????????????? | | ???????# ##??????????????????? | | ?????# ###???????????????????? | | ?????## % ## #?????????????????????? | | ??????# ?? #????????????????????? | | ????? ?? #???????????????????? | | ??? ?? ??????????????????? | +----------------------------------------------------+ Best States ------------- Heat Dissipation 39 Energy Generation 14 Energy Capacity 250 Matter Stores 300 Matter Capacity 300 Sight Range 16 Robot Scan Range 14 Terrain Scan Density 10 Evasion (%) 55 Item Schematics ----------------- None Robot Schematics ------------------ None Fabricated ------------ Nothing Alien Tech Used ----------------- None Achievements -------------- None Challenges ------------ None Game ------ Seed InsulationPoweredRipper Manual? 0 Play Time 00:19:17 Cumulative 6.6 hours Start 2024.03.22 @ 15:24:25 End 2024.03.22 @ 15:44:05 Sessions 1 Manual Loads 0 Difficulty Rogue Special Mode None Game No. 3 Rogue 3 Adventurer 0 Explorer 0 Win Type - Total 0 Types 0/0/0/0/0/0/0/0/0 Lore% 3 Gallery% 14 Achievement% 13 Wizard Run 0 Options --------- Layout 2 ASCII 0 Keyboard 0 Movement Numpad Keybinds 0 Fullscreen 2 Font 32/Tamsyn Map View 50x44 Zoom Use 0% Tactical HUD 1 Map Filters NONE Filters NONE Steam 1 RUN: f72912b1-fa32-4b18-a7c5-a7ac20a03bef